bitfinex-derivatives/quotes_ETHF0:USTF0_20250507
["timestamp","ask_amount","ask_price","bid_price","bid_amount"]
[1746651555819,4.57479,1797.7,1797.6,1.11242]
[1746651556016,3.4624,1797.7,1797.6,2.86232]
[1746651556319,4.57476,1797.7,1797.6,3.59091419]
[1746651557320,3.4624,1797.7,1797.6,3.59091419]
[1746651557519,1.11235,1797.8,1797.7,1.11236]
[1746651557719,1.11235,1797.8,1797.7,2.86226]
[1746651558016,3.3015,1797.9,1797.7,1.7499]
[1746651558319,4.41376,1797.9,1797.8,2.8]
[1746651560114,8.08776,1797.9,1797.8,2.8]
[1746651560322,1.1123,1797.8,1797.7,1.11231]
[1746651560617,2.8157,1797.8,1797.7,1.11231]
[1746651562315,2.8157,1797.8,1797.7,2.87121]
[1746651562719,2.8157,1797.8,1797.7,1.11231]
[1746651563117,6.4897,1797.8,1797.7,1.11231]
[1746651564521,1.11242,1797.7,1797.6,1.11237]
[1746651564721,2.83672,1797.7,1797.6,1.11237]
[1746651565621,1.11242,1797.6,1797.5,3.2078]
[1746651565924,1.1126,1797.4,1797.3,1.11255]
[1746651566124,1.1126,1797.4,1797.3,2.80765]
[1746651567425,1.11267,1797.3,1797.2,1.11263]
[1746651567625,1.11267,1797.2,1797.1,5.44172]
[1746651567826,4.43337,1797.2,1797.1,5.44172]
[1746651568225,4.43337,1797.2,1797.1,1.11272]
[1746651569127,4.43337,1797.2,1797.1,2.80172]
[1746651569320,3.3207,1797.2,1797.1,2.80172]
[1746651569827,4.43337,1797.2,1797.1,2.80172]
[1746651570026,3.3207,1797.2,1797.1,2.80172]
[1746651570925,4.43337,1797.2,1797.1,2.80172]
[1746651571326,3.2078,1797.4,1797.3,1.11261]
[1746651571629,10.36682021,1797.5,1797.4,1.11255]
[1746651571827,10.36682021,1797.5,1797.4,2.76655]
[1746651572030,12.04332021,1797.5,1797.4,2.76655]
[1746651574329,10.93081021,1797.5,1797.4,2.76655]
[1746651574631,9.25431021,1797.5,1797.4,2.76655]
[1746651574822,9.25431021,1797.5,1797.4,3.49399646]
[1746651575025,2.79942,1797.6,1797.5,1.11248]
[1746651575226,1.687,1797.6,1797.5,2.83698]
[1746651575422,2.79942,1797.6,1797.5,2.83698]
[1746651575926,4.58852,1797.6,1797.5,2.83698]
[1746651580126,3.2078,1797.7,1797.5,1.7245]
[1746651580329,3.2078,1797.7,1797.6,7.17302]
[1746651580524,3.2078,1797.7,1797.6,7.90042269]
[1746651580734,9.25431021,1797.9,1797.8,1.1123]
[1746651581531,9.25431021,1797.9,1797.8,3.7345]
[1746651581732,9.25431021,1797.9,1797.8,4.46201372]
[1746651582035,10.36655021,1797.9,1797.8,3.7345]
[1746651582932,9.25431021,1797.9,1797.8,3.7345]
[1746651583131,2.83792,1798.0,1797.9,1.11224]
[1746651583332,2.83792,1798.0,1797.9,2.77954]
[1746651584832,4.59992,1798.0,1797.9,2.77954]
[1746651585233,8.27392,1798.0,1797.9,2.77954]
[1746651586741,8.27392,1798.0,1797.9,1.6673]
[1746651587041,8.27392,1798.0,1797.9,2.77954]
[1746651587937,8.27392,1798.0,1797.7,1.11232]
[1746651587938,7.1617,1798.0,1797.7,1.11232]
[1746651588241,1.1123,1797.8,1797.7,5.44035]
[1746651588636,2.8369,1797.8,1797.7,5.44035]
[1746651589243,6.5109,1797.8,1797.7,5.44035]
[1746651589635,5.3986,1797.8,1797.7,5.44035]
[1746651589837,3.674,1797.8,1797.7,7.13615]
[1746651590143,1.11227,1797.9,1797.8,1.1123]
[1746651590343,4.56251,1798.0,1797.9,1.11224]
[1746651590937,4.56251,1798.0,1797.9,2.80804]
[1746651591138,8.23651,1798.0,1797.9,2.80804]
[1746651591438,8.23648,1798.0,1797.9,2.80804]
[1746651592144,7.1243,1798.0,1797.9,2.80804]
[1746651592538,3.674,1798.0,1797.9,2.80804]
[1746651592741,3.674,1798.0,1797.9,3.53627318]
[1746651593143,4.31992,1798.1,1798.0,1.11218]
[1746651593338,6.02492,1798.1,1798.0,5.44018]
[1746651594246,9.69892,1798.1,1798.0,5.44018]
[1746651595442,15.26315132,1798.5,1798.0,14.26376309]
[1746651595443,4.07577464,1798.5,1798.0,14.26376309]
[1746651595646,2.55751464,1798.5,1798.4,4.31973]
[1746651595948,4.64e-06,1798.5,1798.4,50.17569309]
[1746651596146,4.64e-06,1798.5,1798.4,58.84969309]
[1746651596448,4.64e-06,1798.5,1798.4,59.98854658]
[1746651597251,4.64e-06,1798.5,1798.4,56.31651375]
[1746651597547,4.64e-06,1798.5,1798.4,58.00051375]
[1746651598348,4.64e-06,1798.5,1798.4,61.67451375]
[1746651599047,0.8581,1799.0,1798.7,2.77927]
[1746651599245,2.77814,1799.5,1799.1,1.11148]
[1746651599445,0.8775,1799.2,1799.1,1.11148]
[1746651599949,5.8775,1799.2,1799.1,1.11148]
[1746651600150,6.98899,1799.2,1799.1,1.11148]
[1746651600451,1.1115,1799.1,1799.0,2.85314]
[1746651600658,1.1115,1799.1,1799.0,5.43754]
[1746651600844,0.8775,1799.2,1798.9,3.2078]
[1746651601045,1.11152,1799.1,1799.0,5.43752]
[1746651601954,1.98897,1799.2,1799.1,1.1115]
[1746651602148,1.1115,1799.1,1799.0,5.43751]
[1746651602549,0.8775,1799.2,1799.1,1.1115]
[1746651602747,0.8775,1799.2,1799.1,4.3193]
[1746651602951,1.98893,1799.2,1799.1,4.3193]
[1746651603854,1.98893,1799.2,1799.1,3.2078]
[1746651604153,1.98893,1799.2,1799.1,4.3193]
[1746651604851,1.98893,1799.2,1799.1,1.1115]
[1746651605044,1.98893,1799.2,1799.1,4.3193]
[1746651606056,3.74993,1799.2,1799.1,4.3193]
[1746651608957,3.74993,1799.2,1799.1,3.2078]
[1746651609160,1.1115,1799.1,1799.0,1.11151]
[1746651609347,1.11156,1799.0,1798.9,3.2078]
[1746651610360,5.55827,1798.9,1798.6,8.279]
[1746651610661,1.11174,1798.7,1798.6,1.11179]
[1746651611046,1.1118,1798.6,1798.5,4.378]
[1746651611246,2.799,1798.6,1798.5,4.378]
[1746651612164,1.11199,1798.3,1798.2,7.5858]
[1746651612470,1.6872,1798.5,1798.4,1.11193]
[1746651613065,2.79907,1798.5,1798.4,1.11193]
[1746651614270,2.79907,1798.5,1798.4,2.89153]
[1746651614970,1.11193,1798.4,1798.3,5.48994]
[1746651615171,4.54703,1798.4,1798.3,5.48994]
[1746651615365,3.4351,1798.4,1798.3,5.48994]
[1746651615869,3.4351,1798.4,1798.3,7.26954]
[1746651616068,4.54703,1798.4,1798.3,7.26954]
[1746651616269,3.4351,1798.4,1798.3,7.26954]
[1746651616469,0.845,1798.4,1798.3,7.26954]
[1746651616673,1.11191,1798.5,1798.4,1.11193]
[1746651616860,1.11191,1798.5,1798.4,2.78773]
[1746651617764,2.87271,1798.5,1798.4,1.6758]
[1746651619172,4.9686,1798.5,1798.1,7.1088]
[1746651619472,1.11205,1798.2,1798.1,3.2078]
[1746651620273,4.78605,1798.2,1798.1,3.2078]
[1746651620569,7.41005,1798.2,1798.1,3.2078]
[1746651621473,1.1123,1797.8,1797.7,4.32011]
[1746651621665,1.1123,1797.8,1797.7,8.69911]
[1746651621867,1.1123,1797.8,1797.7,49.49911]
[1746651622062,1.11227,1797.9,1797.8,1.11226]
[1746651622469,1.11227,1797.9,1797.8,2.85386]
[1746651625673,1.11227,1797.9,1797.8,1.7416]
[1746651625873,1.11227,1797.9,1797.8,2.8539]
[1746651626973,1.11227,1797.9,1797.8,1.7416]
[1746651627173,1.95467,1797.9,1797.8,1.7416]
[1746651628566,1.95467,1797.9,1797.8,2.8539]
[1746651629775,1.1123,1797.8,1797.7,3.2078]
[1746651630174,7.3464,1797.8,1797.7,3.2078]
[1746651630479,7.3464,1797.8,1797.7,44.0078]
[1746651630772,3.674,1797.8,1797.7,51.79456]
[1746651630974,1.11206,1798.2,1798.1,1.11211]
[1746651631674,1.11206,1798.2,1798.1,3.72381]
[1746651632575,1.11211,1798.1,1798.0,4.38]
[1746651632778,1.11211,1798.1,1798.0,5.49218]
[1746651634374,1.11189,1798.5,1798.4,1.11186]
[1746651634565,1.11189,1798.5,1798.4,4.31966]
[1746651634970,4.4531,1798.7,1798.5,1.11186]
[1746651634971,1.11185,1798.6,1798.5,1.11186]
[1746651635179,1.1118,1798.7,1798.6,1.1118]
[1746651635377,2.7855,1798.7,1798.6,1.1118]
[1746651636670,12.05878,1798.9,1798.5,1.7467]
[1746651636671,1.1117,1798.8,1798.5,1.7467]
[1746651636971,0.8454,1798.9,1798.8,1.11168]
[1746651637175,2.78525,1799.1,1799.0,1.11156]
[1746651637976,2.78525,1799.1,1799.0,2.79646]
[1746651638878,1.6737,1799.1,1799.0,2.79646]
[1746651639178,1.11141,1799.3,1799.2,1.11143]
[1746651641775,1.11141,1799.3,1799.1,1.6849]
[1746651641776,4.8692,1799.3,1799.1,1.11146]
[1746651642078,1.1115,1799.1,1799.0,5.47651]
[1746651642284,2.77288,1799.2,1799.1,1.1115]
[1746651642779,2.77288,1799.2,1799.1,2.7457]
[1746651643380,1.11139,1799.3,1799.2,1.11137]
[1746651643680,1.11143,1799.2,1799.1,2.74565]
[1746651644774,1.11143,1799.2,1799.1,5.95345]
[1746651645283,1.11143,1799.2,1799.1,2.74565]
[1746651646878,1.1115,1799.1,1799.0,46.27652]
[1746651647077,2.8079,1799.1,1799.0,48.03732]
[1746651647581,1.6964,1799.1,1799.0,48.03732]
[1746651647783,2.8079,1799.1,1799.0,48.03732]
[1746651648987,1.11145,1799.2,1799.1,1.1114]
[1746651649182,1.11145,1799.2,1799.1,2.8722]
[1746651649484,1.11142,1799.3,1799.2,1.11137]
[1746651649681,1.11142,1799.3,1799.2,2.83147]
[1746651652486,3.67856,1799.4,1799.3,1.11137]
[1746651652784,3.67856,1799.4,1799.3,2.80627]
[1746651653080,7.35256,1799.4,1799.3,2.80627]
[1746651659389,7.35256,1799.4,1799.3,1.11137]
[1746651660186,3.67856,1799.4,1799.3,1.11137]
[1746651661782,1.11143,1799.2,1799.1,4.31927]
[1746651661981,1.11143,1799.2,1799.1,1.85470862]
[1746651662285,3.69973,1799.2,1799.1,1.85470862]
[1746651662593,1.11142,1799.3,1799.2,1.11143]
[1746651662786,1.11142,1799.3,1799.2,3.53076862]
[1746651663187,1.11142,1799.3,1799.2,3.53170362]
[1746651663579,1.11142,1799.3,1799.2,0.74417362]
[1746651663889,1.11156,1799.0,1798.9,3.2078]
[1746651664084,5.55747,1799.2,1798.9,3.2078]
[1746651664085,1.11155,1799.1,1799.0,1.1115]
[1746651664391,1.11155,1799.1,1799.0,1.85555102]
[1746651664590,3.68435,1799.1,1799.0,1.85555102]
[1746651664891,3.68435,1799.1,1799.0,3.62505102]
[1746651666891,3.68435,1799.1,1799.0,3.62475701]
[1746651667486,1.11156,1799.0,1798.9,4.31937]
[1746651667693,3.67686,1799.0,1798.9,5.06336238]
[1746651667990,3.67686,1799.0,1798.9,3.95179238]
[1746651668285,7.35086,1799.0,1798.9,3.2078]
[1746651668682,7.35086,1799.0,1798.9,3.95168305]
[1746651668887,7.35086,1799.0,1798.9,3.2078]
[1746651669093,7.35086,1799.0,1798.9,3.95114901]
[1746651669294,7.35086,1799.0,1798.9,3.2078]
[1746651670392,1.11168,1798.8,1798.7,7.5708]
[1746651670592,1.11168,1798.8,1798.7,8.31388918]
[1746651670993,1.97728,1798.8,1798.7,8.31388918]
[1746651671396,1.97728,1798.8,1798.7,7.5708]
[1746651672199,5.65128,1798.8,1798.7,3.2078]
[1746651672497,5.5589,1798.7,1798.4,6.0799]
[1746651672696,1.11187,1798.5,1798.4,7.19183]
[1746651672996,1.11187,1798.5,1798.4,7.9338987]
[1746651674093,1.11187,1798.5,1798.4,6.0799]
[1746651674295,1.92537,1798.5,1798.4,6.0799]
[1746651674488,3.61787,1798.5,1798.4,6.0799]
[1746651675492,1.11193,1798.4,1798.3,8.70779]
[1746651675998,1.11193,1798.4,1798.3,49.50779]
[1746651677298,2.81363,1798.4,1798.3,7.5958]
[1746651677598,2.81363,1798.4,1798.3,8.70779]
[1746651677799,2.81363,1798.4,1798.3,51.28359]
[1746651679002,2.81363,1798.4,1798.3,50.1716]
[1746651679302,2.81363,1798.4,1798.3,9.3716]
[1746651679702,2.81363,1798.4,1798.3,10.48359]
[1746651681300,5.98711,1798.8,1798.4,2.77983]
[1746651681598,1.11168,1798.9,1798.8,1.11168]
[1746651681998,1.11168,1798.9,1798.8,2.73638]
[1746651682199,1.11153,1799.1,1799.0,1.1115]
[1746651682398,1.11153,1799.1,1799.0,4.3193]
[1746651682796,1.11153,1799.1,1799.0,5.944]
[1746651683311,1.11162,1798.9,1798.7,0.8198]
[1746651683509,1.1119,1798.5,1798.3,4.388]
[1746651683801,1.1119,1798.5,1798.4,4.31968]
[1746651683994,2.77937,1798.7,1798.5,1.11183]
[1746651683995,1.11185,1798.6,1798.5,1.11183]
[1746651684195,1.11185,1798.6,1798.5,2.85653]
[1746651684392,2.88515,1798.6,1798.5,2.85653]
[1746651685605,2.88515,1798.6,1798.5,1.7447]
[1746651685808,1.11193,1798.4,1798.3,4.388]
[1746651686007,1.11193,1798.4,1798.3,5.49999]
[1746651686203,1.6659,1798.7,1798.3,6.117]
[1746651686408,1.11185,1798.6,1798.5,1.11182]
[1746651686604,1.11185,1798.6,1798.5,1.96852]
[1746651691707,4.56748,1798.7,1798.6,1.1118]
[1746651692010,1.11178,1798.7,1798.6,1.1118]
[1746651692513,1.11178,1798.7,1798.6,1.85257347]
[1746651692703,1.11178,1798.7,1798.6,1.85257492]
[1746651692900,1.1118,1798.6,1798.5,1.96852]
[1746651693097,1.1118,1798.6,1798.5,2.7092988]
[1746651693510,1.1118,1798.6,1798.5,43.5092988]
[1746651693807,1.1118,1798.6,1798.5,0.7407788]
[1746651694112,1.11187,1798.5,1798.4,3.2078]
[1746651694315,1.11219,1798.1,1798.0,1.11213]
[1746651694610,5.98791,1798.3,1798.0,0.7411063]
[1746651694812,1.11217,1798.1,1798.0,1.11216]
[1746651695508,1.11217,1798.1,1798.0,1.85191061]
[1746651696104,1.11217,1798.1,1798.0,1.85189267]
[1746651696411,3.6021,1798.2,1798.1,1.11211]
[1746651698415,1.11205,1798.2,1798.1,1.11211]
[1746651698613,1.11199,1798.4,1798.3,1.11196]
[1746651699316,1.11199,1798.4,1798.3,1.85166539]
[1746651699708,1.11199,1798.4,1798.3,1.85170254]
[1746651701418,2.73929,1798.4,1798.3,1.85170254]
[1746651703620,1.11199,1798.3,1798.2,1.112]
[1746651703815,3.58179,1798.3,1798.2,1.85267961]
[1746651704815,0.8425,1798.3,1798.2,1.85267961]
[1746651705022,1.11199,1798.4,1798.3,1.11195]
[1746651705319,4.45562,1798.5,1798.4,1.11193]
[1746651706114,0.8834,1798.5,1798.4,1.11193]
[1746651706422,1.99527,1798.5,1798.4,2.70828102]
[1746651706917,1.99527,1798.5,1798.4,4.41528102]
[1746651707917,1.99527,1798.5,1798.4,1.85301277]
[1746651708923,1.99527,1798.5,1798.4,1.11193]
[1746651709122,1.99527,1798.5,1798.4,1.85289258]
[1746651709724,1.99527,1798.5,1798.4,44.42990242]
[1746651709925,0.8834,1798.5,1798.4,44.42990242]
[1746651710225,5.15336,1798.7,1798.6,1.1118]
[1746651710422,5.15336,1798.7,1798.6,1.8527572]
[1746651710825,5.15336,1798.7,1798.6,3.4660572]
[1746651711820,4.0416,1798.7,1798.6,3.4660572]
[1746651712026,5.15334,1798.7,1798.6,3.4660572]
[1746651712326,3.2078,1798.9,1798.6,2.3542572]
[1746651712521,4.52229,1799.0,1798.9,1.11153]
[1746651712722,13.90415332,1799.2,1799.0,1.11156]
[1746651712723,1.11154,1799.1,1799.0,1.11156]
[1746651713026,1.11154,1799.1,1799.0,3.46720972]
[1746651713219,2.81994,1799.1,1799.0,3.46720972]
[1746651713419,2.81994,1799.1,1799.0,3.46726559]
[1746651714229,2.81994,1799.1,1799.0,2.72486]
[1746651719428,2.81994,1799.1,1799.0,1.6133]
[1746651719628,1.11162,1798.9,1798.8,1.11164]
[1746651720029,2.74041,1799.0,1798.9,1.11162]
[1746651720230,1.6288,1799.0,1798.9,1.11162]
[1746651720532,1.11154,1799.1,1799.0,1.11156]
[1746651720732,1.11154,1799.1,1799.0,2.84696]
[1746651721334,2.74034,1799.1,1799.0,2.84696]
[1746651724535,2.81379,1799.2,1799.1,1.1115]
[1746651724838,2.81379,1799.2,1799.1,2.9028]
[1746651725337,4.50319,1799.2,1799.1,2.9028]
[1746651725935,4.50319,1799.2,1799.1,1.7913]
[1746651726136,1.11156,1799.0,1798.9,5.51358]
[1746651726437,1.11156,1799.0,1798.9,7.27498]
[1746651727240,1.11162,1798.9,1798.8,4.31946]
[1746651727437,3.57612,1798.9,1798.8,3.2078]
[1746651727740,1.11174,1798.7,1798.6,5.4788]
[1746651727941,1.11174,1798.7,1798.6,7.2402]
[1746651728346,2.74074,1798.7,1798.6,4.367]
[1746651728941,1.11193,1798.4,1798.3,2.77247]
[1746651729344,1.11199,1798.3,1798.2,4.367]
[1746651729534,2.5229,1798.3,1797.9,66.24619]
[1746651729731,1.11218,1798.0,1797.9,11.17269]
[1746651729934,1.11218,1798.0,1797.9,52.71246248]
[1746651730339,1.11218,1798.0,1797.9,40.8]
[1746651730536,1.11224,1797.9,1797.8,7.44230227]
[1746651731142,1.11224,1797.9,1797.8,49.35459227]
[1746651731343,1.11222,1798.0,1797.9,1.11222]
[1746651732143,1.11197,1798.4,1798.3,1.11197]
[1746651732445,5.7085,1798.5,1798.1,6.7328]
[1746651732745,4.0304,1798.7,1798.1,9.51308]
[1746651733047,1.1119,1798.5,1798.4,1.11189]
[1746651733241,1.11197,1798.4,1798.3,1.11196]
[1746651733443,1.6135,1798.6,1798.2,6.1591]
[1746651733642,1.11188,1798.5,1798.4,1.11187]
[1746651733845,4.9176,1798.7,1798.6,1.1118]
[1746651734038,4.9176,1798.7,1798.4,2.77982]
[1746651734039,4.095,1798.7,1798.5,1.7911]
[1746651734239,1.1118,1798.6,1798.5,1.7911]
[1746651734447,1.6135,1798.6,1798.3,4.31975]
[1746651734646,1.11199,1798.3,1798.2,7.2711]
[1746651735541,2.75439,1798.3,1798.2,7.2711]
[1746651735738,2.75439,1798.3,1798.2,4.368]
[1746651735940,6.82839,1798.3,1798.2,4.368]
[1746651736348,1.11218,1798.0,1797.9,8.68799]
[1746651737135,1.11218,1798.0,1797.9,9.3454]
[1746651737341,1.11218,1798.0,1797.9,10.45764]
[1746651737641,1.6424,1798.1,1797.9,9.3454]
[1746651737843,1.1121,1798.2,1798.1,1.11207]
[1746651738048,2.8749,1798.2,1798.1,1.11207]
[1746651738642,1.7628,1798.2,1798.1,1.11207]
[1746651738849,5.18604,1798.3,1798.2,1.11205]
[1746651739238,1.11209,1798.2,1798.1,1.11207]
[1746651739443,2.87489,1798.2,1798.1,1.11207]
[1746651740354,1.11218,1798.0,1797.9,7.5758]
[1746651740548,1.11218,1798.0,1797.9,8.68804]
[1746651741549,1.7628,1798.1,1798.0,1.11218]
[1746651741744,2.87495,1798.1,1798.0,1.6764]
[1746651741950,1.11218,1798.0,1797.9,5.4802]
[1746651742244,1.7372,1798.0,1797.9,5.4802]
[1746651742450,1.11214,1798.1,1798.0,1.11218]
[1746651742644,1.11214,1798.1,1798.0,2.78858]
[1746651743448,2.84931,1798.2,1798.1,1.11211]
[1746651743648,2.84931,1798.2,1798.1,2.78851]
[1746651746351,2.84931,1798.2,1798.1,1.11211]
[1746651747352,4.945,1798.2,1797.9,4.368]
[1746651747552,1.11218,1798.0,1797.9,5.48024]
[1746651747954,1.96578,1798.0,1797.9,5.48024]
[1746651748653,1.96578,1798.0,1797.9,4.368]
[1746651753356,0.8536,1798.0,1797.7,3.2078]
[1746651753562,1.1123,1797.8,1797.7,4.32013]
[1746651753762,1.1123,1797.8,1797.7,6.09763]
[1746651754159,1.1123,1797.8,1797.7,6.83758875]
[1746651755856,1.1123,1797.8,1797.7,6.83809315]
[1746651756171,2.6491,1797.9,1797.8,1.1123]
[1746651756357,2.6491,1797.9,1797.8,2.7286]
[1746651756663,2.6491,1797.9,1797.8,3.46932398]
[1746651756865,2.6491,1797.9,1797.8,2.7286]
[1746651757164,3.76138,1797.9,1797.8,1.6163]
[1746651757358,3.76138,1797.9,1797.8,2.35764927]
[1746651758868,3.76138,1797.9,1797.8,3.46994927]
[1746651759672,3.76138,1797.9,1797.8,2.35764927]
[1746651759970,3.76138,1797.9,1797.8,3.46994927]
[1746651761472,3.76138,1797.9,1797.8,2.35764927]
[1746651761865,3.76138,1797.9,1797.8,2.3582342]
[1746651762065,3.76138,1797.9,1797.8,0.7419342]
[1746651763073,1.1123,1797.8,1797.7,4.9009]
[1746651763371,2.7955,1797.8,1797.7,0.7418671]
[1746651764173,6.4695,1797.8,1797.7,0.7418671]
[1746651766574,9.6773,1797.8,1797.7,0.7418671]
[1746651766871,2.78106,1797.6,1797.2,1.11262]
[1746651767072,1.11267,1797.3,1797.2,43.54732]
[1746651767576,1.11261,1797.3,1797.2,43.54732]
[1746651770077,2.77807,1797.4,1797.3,1.11261]
[1746651770276,2.77807,1797.4,1797.3,2.80241]
[1746651770476,1.11257,1797.4,1797.3,2.80241]
[1746651770676,3.2078,1797.6,1797.4,1.11255]
[1746651770879,1.11248,1797.5,1797.4,2.00725]
[1746651772074,1.11248,1797.5,1797.4,2.85335]
[1746651772270,4.32027,1797.6,1797.5,1.11248]
[1746651773279,6.04037,1797.6,1797.5,1.11248]
[1746651774078,1.11248,1797.5,1797.4,2.8533]
[1746651774275,1.11261,1797.4,1797.3,1.11256]
[1746651774878,4.47381,1797.4,1797.3,1.11256]
[1746651776082,1.11261,1797.3,1797.2,43.60793]
[1746651776286,2.78531,1797.3,1797.2,2.80793]
[1746651776584,2.78531,1797.3,1797.2,3.52545173]
[1746651777081,2.8011,1797.4,1797.2,3.52545173]
[1746651777277,4.5926,1797.4,1797.3,1.11261]
[1746651777478,1.11261,1797.3,1797.2,2.80792]
[1746651777773,1.11267,1797.2,1797.1,49.5295]
[1746651778678,1.11267,1797.2,1797.1,8.34584217]
[1746651778987,1.11267,1797.2,1797.1,9.45857217]
[1746651781789,1.11267,1797.2,1797.1,8.72953]
[1746651781989,1.11267,1797.2,1797.1,9.4581713]
[1746651782184,1.11267,1797.2,1797.1,5.1376413]
[1746651782489,1.11267,1797.2,1797.1,4.409]
[1746651783583,1.11279,1797.0,1796.9,4.32064]
[1746651783782,1.11279,1797.0,1796.9,5.04897925]
[1746651783978,2.78959,1797.0,1796.9,5.04897925]
[1746651784379,2.78959,1797.0,1796.9,1.84117925]
[1746651784992,1.11268,1797.3,1797.0,2.78199]
[1746651785191,1.11268,1797.3,1797.2,1.11261]
[1746651786291,1.11268,1797.3,1797.2,2.76811]
[1746651786489,2.85048,1797.3,1797.2,1.6555]
[1746651786790,2.85048,1797.3,1797.2,2.76817]
[1746651787789,2.85048,1797.3,1797.2,1.6555]
[1746651788389,1.7378,1797.3,1797.0,1.11277]
[1746651789591,1.11272,1797.2,1797.1,2.76823]
[1746651790493,1.11272,1797.2,1797.1,3.49659467]
[1746651790690,4.32041,1797.4,1797.3,1.11261]
[1746651790896,1.11251,1797.5,1797.4,1.11255]
[1746651791089,1.11251,1797.5,1797.4,3.604714]
[1746651792107,1.11251,1797.5,1797.4,2.87665]
[1746651792289,1.11251,1797.5,1797.4,3.6061709]
[1746651792491,1.11251,1797.5,1797.4,2.87665]
[1746651793299,1.11251,1797.5,1797.4,3.60623011]
[1746651793594,1.11251,1797.5,1797.2,4.46413]
[1746651793595,1.11261,1797.3,1797.2,2.79523]
[1746651793796,1.11261,1797.3,1797.2,5.17455799]
[1746651793987,1.11261,1797.3,1797.2,2.37932799]
[1746651794193,1.11267,1797.2,1797.1,7.5898]
[1746651794394,1.93087,1797.2,1797.1,7.5898]
[1746651794592,1.93087,1797.2,1797.1,3.2078]
[1746651795190,5.60487,1797.2,1797.1,3.2078]
[1746651796197,3.674,1797.2,1797.1,5.04985388]
[1746651796397,3.674,1797.2,1797.1,5.89145388]
[1746651796798,3.674,1797.2,1797.1,6.60924577]
[1746651797399,1.11265,1797.3,1797.2,1.11267]
[1746651797597,1.11265,1797.3,1797.2,4.31719388]
[1746651798096,1.11265,1797.3,1797.2,4.3182578]
[1746651799190,1.11265,1797.3,1797.2,3.2055878]
[1746651799395,3.64825,1797.3,1797.2,3.4707578]
[1746651801692,3.64825,1797.3,1797.2,3.47127687]
[1746651801995,3.64825,1797.3,1797.2,1.84357687]
[1746651803199,3.64825,1797.3,1797.2,1.84370843]
[1746651805002,3.64825,1797.3,1797.2,0.73103843]
[1746651805392,3.64825,1797.3,1797.2,1.84370843]
[1746651806299,1.93219,1797.4,1797.2,0.73103843]
[1746651806493,2.6662,1797.5,1797.4,1.11255]
[1746651806694,1.11254,1797.5,1797.4,3.59188843]
[1746651806895,1.11254,1797.5,1797.4,2.47933843]
[1746651807102,2.90224,1797.5,1797.4,3.59188843]
[1746651807302,1.11254,1797.5,1797.4,3.59188843]
[1746651807698,2.89294,1797.5,1797.4,3.59188843]
[1746651807891,1.11254,1797.5,1797.4,3.59188843]
[1746651808293,10.34658369,1797.7,1797.6,1.11242]
[1746651808492,10.34658369,1797.7,1797.6,1.84345843]
[1746651808999,10.34658369,1797.7,1797.6,4.46975843]
[1746651809504,10.34658369,1797.7,1797.6,3.35733843]
[1746651810395,10.34658369,1797.7,1797.6,4.46975843]
[1746651810801,12.09508369,1797.7,1797.6,4.46975843]
[1746651811004,12.09508369,1797.7,1797.6,4.46892122]
[1746651811502,2.86091,1797.7,1797.6,4.46892122]
[1746651812303,2.86091,1797.7,1797.6,3.35650122]
[1746651812495,2.86091,1797.7,1797.6,2.50540122]
[1746651813504,1.11248,1797.5,1797.4,4.382]
[1746651813693,1.11248,1797.5,1797.4,5.11176629]
[1746651814102,2.83128,1797.5,1797.4,5.11176629]
[1746651814303,2.83128,1797.5,1797.4,0.72976629]
[1746651814504,1.11267,1797.2,1797.1,8.70251]
[1746651814705,1.11267,1797.2,1797.1,11.18088899]
[1746651814899,1.11267,1797.2,1797.1,11.90274475]
[1746651815300,1.11267,1797.2,1797.1,11.18088899]
[1746651816306,1.11267,1797.2,1797.1,11.90232725]
[1746651816506,1.11267,1797.2,1797.1,11.90155697]
[1746651816697,1.11267,1797.2,1797.1,8.31900871]
[1746651817007,2.79107,1797.2,1797.1,8.31900871]
[1746651817995,2.79107,1797.2,1797.1,0.72920871]
[1746651818396,2.79107,1797.2,1797.1,1.84193871]
[1746651818601,2.79107,1797.2,1797.1,0.72920871]
[1746651819100,2.79107,1797.2,1797.1,2.45750871]
[1746651819908,2.79107,1797.2,1797.1,2.45785124]
[1746651820204,2.79107,1797.2,1797.1,1.7283]
[1746651820407,1.11273,1797.1,1797.0,1.7799]
[1746651820606,2.79893,1797.1,1797.0,2.50945884]
[1746651821410,2.79893,1797.1,1797.0,5.34947896]
[1746651821610,2.79893,1797.1,1797.0,6.07124796]
[1746651822211,2.79893,1797.1,1797.0,1.45115796]
[1746651822508,2.79893,1797.1,1797.0,0.72938896]
[1746651823105,2.79893,1797.1,1797.0,1.84217896]
[1746651823310,1.6799,1797.3,1797.0,2.36388896]
[1746651823514,1.11255,1797.4,1797.3,1.11261]
[1746651823812,1.11255,1797.4,1797.3,1.84199896]
[1746651824412,9.23417369,1797.5,1797.4,1.11255]
[1746651824614,10.34665369,1797.5,1797.4,7.03303896]
[1746651824814,10.34665369,1797.5,1797.4,7.75452247]
[1746651825517,9.23417369,1797.5,1797.4,8.58952247]
[1746651825707,10.34665369,1797.5,1797.4,8.58952247]
[1746651826114,1.11248,1797.5,1797.4,8.58952247]
[1746651826815,1.11248,1797.5,1797.4,8.58944593]
[1746651830319,1.11248,1797.5,1797.4,7.86796242]
[1746651830519,1.11248,1797.5,1797.4,7.86782862]
[1746651831622,9.38214782,1797.8,1797.7,1.11236]
[1746651831813,8.53894782,1797.8,1797.7,1.84153862]
[1746651832023,8.53894782,1797.8,1797.7,6.22053862]
[1746651832223,7.42663782,1797.8,1797.7,6.22053862]
[1746651832439,7.42663782,1797.8,1797.7,9.42848466]